bitfinex-derivatives/quotes_BNBF0:USTF0_20251010
["timestamp","ask_amount","ask_price","bid_price","bid_amount"]
[1760066075988,0.03191902,1246.7,1246.5,0.55388251]
[1760066076188,0.03191902,1246.7,1246.6,0.55388251]
[1760066076589,0.02412896,1246.7,1246.6,0.55388251]
[1760066082595,0.018246,1246.7,1246.6,0.55388251]
[1760066088500,0.01380242,1246.7,1246.6,0.55388251]
[1760066088797,0.00980242,1246.7,1246.6,0.55388251]
[1760066093701,0.00580242,1246.7,1246.6,0.55388251]
[1760066094500,0.39657507,1248.1,1246.6,0.55388251]
[1760066094701,0.30609401,1247.9,1247.4,3.9730273]
[1760066095002,0.30609401,1247.9,1247.5,0.55388251]
[1760066095201,0.30609401,1247.9,1247.6,0.55388251]
[1760066095398,0.30609401,1247.9,1247.7,0.55388251]
[1760066095703,0.30609401,1247.9,1247.8,0.55388251]
[1760066103307,0.1869452,1247.9,1247.8,0.55388251]
[1760066108006,0.1869452,1247.9,1247.8,2.53458091]
[1760066110607,0.1869452,1247.9,1247.8,0.55388251]
[1760066113114,0.1869452,1247.9,1247.8,3.32882091]
[1760066113608,0.14353852,1247.9,1247.8,3.32882091]
[1760066114109,0.14353852,1247.9,1247.8,0.55388251]
[1760066124621,0.10927094,1247.9,1247.8,0.55388251]
[1760066126925,0.10927094,1247.9,1247.8,3.32360271]
[1760066130223,0.10927094,1247.9,1247.8,0.55388251]
[1760066147042,0.10927094,1247.9,1247.8,2.53628399]
[1760066148244,0.10927094,1247.9,1247.8,0.55388251]
[1760066176865,0.10927094,1247.9,1247.8,1.74153205]
[1760066178865,0.10927094,1247.9,1247.8,0.55388251]
[1760066179664,0.10927094,1247.9,1247.8,0.55787583]
[1760066180971,0.10927094,1247.9,1247.8,1.5484767]
[1760066181168,0.10927094,1247.9,1247.8,0.755996]
[1760066181372,0.10927094,1247.9,1247.8,0.55787583]
[1760066182273,0.10927094,1247.9,1247.8,1.15208086]
[1760066187075,0.10927094,1247.9,1247.8,0.55787583]
[1760066188181,0.10927094,1247.9,1247.8,1.15208086]
[1760066188682,0.10927094,1247.9,1247.8,0.55787583]
[1760066201986,0.10927094,1247.9,1247.8,1.15208086]
[1760066202490,0.10927094,1247.9,1247.8,0.55787583]
[1760066205091,0.30499552,1247.9,1247.8,0.55787583]
[1760066205286,0.30499552,1247.9,1247.8,0.755996]
[1760066205590,0.30499552,1247.9,1247.8,1.94364554]
[1760066205793,0.30499552,1247.9,1247.8,1.74552537]
[1760066206489,0.30499552,1247.9,1247.8,0.55787583]
[1760066212491,0.30499552,1247.9,1247.8,1.74227307]
[1760066214894,0.30499552,1247.9,1247.8,0.55787583]
[1760066217403,0.30499552,1247.9,1247.8,0.55635949]
[1760066219005,0.30499552,1247.9,1247.8,1.74168167]
[1760066219501,0.30499552,1247.9,1247.8,0.55635949]
[1760066222202,0.30499552,1247.9,1247.8,1.74336908]
[1760066225109,0.30499552,1247.9,1247.8,0.55635949]
[1760066225306,0.30499552,1247.9,1247.8,1.74524801]
[1760066226006,0.30499552,1247.9,1247.8,0.55635949]
[1760066226206,0.30499552,1247.9,1247.8,1.74524801]
[1760066227511,0.30499552,1247.9,1247.8,0.55635949]
[1760066237517,0.30499552,1247.9,1246.5,1.97945768]
[1760066237721,0.30499552,1247.9,1246.6,0.55815106]
[1760066238017,0.30499552,1247.9,1246.7,0.55815106]
[1760066238221,0.30499552,1247.9,1246.8,0.55815106]
[1760066238418,0.30499552,1247.9,1246.9,0.55815106]
[1760066238717,0.30499552,1247.9,1247.0,0.55815106]
[1760066238922,0.30499552,1247.9,1247.1,0.55815106]
[1760066239118,0.30499552,1247.9,1246.6,1.97945768]
[1760066239119,0.30499552,1247.9,1247.2,0.55815106]
[1760066239319,0.30499552,1247.9,1247.3,0.55815106]
[1760066239524,0.30499552,1247.9,1247.4,0.55815106]
[1760066239822,0.30499552,1247.9,1247.5,0.55815106]
[1760066240121,0.30499552,1247.9,1247.6,0.55815106]
[1760066240323,0.30499552,1247.9,1247.7,0.55815106]
[1760066240523,0.30499552,1247.9,1247.8,0.55815106]
[1760066246024,0.30499552,1247.9,1247.8,2.53760874]
[1760066246625,0.30499552,1247.9,1247.8,0.55815106]
[1760066262341,0.30499552,1247.9,1247.8,2.53760874]
[1760066262740,0.30499552,1247.9,1247.8,0.55815106]
[1760066281449,0.30499552,1247.9,1247.8,2.54477036]
[1760066281852,0.30499552,1247.9,1247.8,0.55815106]
[1760066283151,0.23236165,1247.9,1247.8,0.55815106]
[1760066293658,0.23236165,1247.9,1247.8,3.33490676]
[1760066294457,0.19572458,1247.9,1247.8,3.33490676]
[1760066294655,0.13147921,1247.9,1247.8,0.55815106]
[1760066296156,0.13147921,1247.9,1247.8,0.55991993]
[1760066300560,0.10092949,1247.9,1247.8,0.55991993]
[1760066315369,0.07781286,1247.9,1247.8,0.55991993]
[1760066321375,0.05347256,1247.9,1247.8,0.55991993]
[1760066327185,0.19582384,1248.1,1247.8,0.55991993]
[1760066327485,0.25739721,1248.2,1247.9,0.55991993]
[1760066327792,0.25739721,1248.2,1248.0,0.55991993]
[1760066328093,0.25739721,1248.2,1248.1,0.55991993]
[1760066338305,0.25739721,1248.2,1248.1,3.33127123]
[1760066339205,0.25739721,1248.2,1248.1,0.55991993]
[1760066339402,0.00243974,1248.2,1248.1,0.55991993]
[1760066341811,0.00243974,1248.2,1248.1,4.51273093]
[1760066343808,0.00243974,1248.2,1248.1,0.55991993]
[1760066345312,0.19697797,1248.4,1248.1,0.55991993]
[1760066345608,0.02188545,1248.4,1248.2,0.55991993]
[1760066345811,0.02188545,1248.4,1248.3,0.55991993]
[1760066346709,0.02188545,1248.4,1248.3,5.33767403]
[1760066347309,0.02188545,1248.4,1248.3,3.34695683]
[1760066347609,0.02188545,1248.4,1248.3,0.55991993]
[1760066349511,0.02188545,1248.4,1248.3,2.55114253]
[1760066354216,0.02188545,1248.4,1248.3,0.55991993]
[1760066356020,0.02188545,1248.4,1248.3,3.34695683]
[1760066358117,0.02188545,1248.4,1248.3,0.55991993]
[1760066358521,0.01559645,1248.4,1248.3,0.55991993]
[1760066359021,0.01559645,1248.4,1248.3,3.34695683]
[1760066360121,0.01559645,1248.4,1248.3,0.55991993]
[1760066362322,0.01559645,1248.4,1248.3,0.56614526]
[1760066364521,0.01112117,1248.4,1248.3,0.56614526]
[1760066365122,0.00712117,1248.4,1248.3,0.56614526]
[1760066370322,0.00312117,1248.4,1248.3,0.56614526]
[1760066375129,0.02946542,1248.8,1248.3,0.56614526]
[1760066375428,0.02946542,1248.8,1248.7,3.968767]
[1760066375625,0.02946542,1248.8,1248.7,4.53491226]
[1760066377432,0.02946542,1248.8,1248.7,0.56614526]
[1760066381127,0.19741389,1250.0,1248.7,0.56614526]
[1760066381128,0.10796148,1249.0,1248.7,0.56614526]
[1760066381332,0.10796148,1249.0,1247.7,6.3783032]
[1760066381333,0.10796148,1249.0,1248.8,4.53201026]
[1760066381529,0.10796148,1249.0,1248.9,0.56614526]
[1760066385332,0.07806213,1249.0,1248.9,0.56614526]
[1760066386437,0.07806213,1249.0,1248.9,3.33472876]
[1760066387440,0.07806213,1249.0,1248.9,0.56614526]
[1760066388747,0.07806213,1249.0,1248.9,3.33182589]
[1760066390748,0.07806213,1249.0,1248.9,0.56614526]
[1760066394351,0.0022183,1249.0,1248.9,0.56614526]
[1760066398754,0.0022183,1249.0,1248.9,3.32473086]
[1760066399651,0.0022183,1249.0,1248.9,0.56614526]
[1760066401256,0.19741389,1250.0,1248.9,0.56614526]
[1760066401458,0.19741389,1250.0,1249.7,2.7556974]
[1760066401758,0.19741389,1250.0,1249.7,3.32184266]
[1760066402459,0.19741389,1250.0,1249.7,0.56614526]
[1760066406264,0.19741389,1250.0,1249.7,3.30590304]
[1760066407264,0.19741389,1250.0,1249.7,0.56614526]
[1760066408862,0.19741389,1250.0,1249.7,2.52151713]
[1760066410264,0.19741389,1250.0,1249.7,0.56614526]
[1760066413866,0.09054654,1249.8,1249.7,0.56614526]
[1760066418667,0.15818678,1249.9,1249.7,0.56614526]
[1760066418867,0.15818678,1249.9,1249.8,0.56614526]
[1760066419863,0.1046934,1250.0,1249.8,0.56614526]
[1760066420069,0.1046934,1250.0,1249.9,0.56614526]
[1760066422070,0.1046934,1250.0,1249.9,4.47715086]
[1760066424272,0.1046934,1250.0,1249.9,0.56614526]
[1760066424871,0.1046934,1250.0,1249.9,3.30660046]
[1760066428067,0.1046934,1250.0,1249.9,0.56614526]
[1760066431976,0.39677425,1250.1,1249.9,0.56614526]
[1760066432272,0.37235055,1250.1,1250.0,0.56614526]
[1760066435974,0.37235055,1250.1,1250.0,4.49471266]
[1760066438077,0.37235055,1250.1,1250.0,0.56614526]
[1760066440474,0.22758205,1250.1,1250.0,0.56614526]
[1760066440975,0.22758205,1250.1,1250.0,4.50299756]
[1760066443077,0.22758205,1250.1,1250.0,0.56614526]
[1760066447583,0.12137445,1250.1,1250.0,0.56614526]
[1760066451787,0.09159116,1250.1,1250.0,0.56614526]
[1760066453486,0.02042977,1250.1,1250.0,0.56614526]
[1760066454792,0.02042977,1250.1,1250.0,4.52064996]
[1760066456999,0.02042977,1250.1,1250.0,0.56614526]
[1760066459602,0.16636948,1250.3,1250.0,0.56614526]
[1760066459901,0.16636948,1250.3,1250.1,0.56614526]
[1760066460099,0.16636948,1250.3,1250.2,0.56614526]
[1760066462799,0.16636948,1250.3,1250.2,3.33786486]
[1760066463597,0.16636948,1250.3,1250.2,0.56614526]
[1760066464996,0.12630902,1250.3,1250.2,0.56614526]
[1760066465700,0.04826663,1250.3,1250.2,0.56614526]
[1760066470103,0.03682931,1250.3,1250.2,0.56614526]
[1760066471700,0.17918333,1251.2,1250.2,0.56614526]
[1760066471901,0.17918333,1251.2,1250.6,3.9612178]
[1760066472103,0.17918333,1251.2,1250.7,0.56614526]
[1760066472301,0.17918333,1251.2,1250.8,0.56614526]
[1760066472500,0.17918333,1251.2,1250.9,0.56614526]
[1760066472700,0.17918333,1251.2,1251.0,0.56614526]
[1760066472899,0.17918333,1251.2,1251.1,0.56614526]
[1760066473906,0.17918333,1251.2,1251.1,2.54648766]
[1760066475405,0.17918333,1251.2,1251.1,0.56614526]
[1760066476707,0.17918333,1251.2,1251.1,3.33450486]
[1760066478708,0.17918333,1251.2,1251.1,0.56614526]
[1760066481507,0.13713081,1251.2,1251.1,0.56614526]
[1760066481809,0.13713081,1251.2,1251.1,3.33450486]
[1760066484110,0.13713081,1251.2,1251.1,0.56614526]
[1760066485107,0.13713081,1251.2,1248.8,2.7683596]
[1760066485310,0.13713081,1251.2,1248.9,0.54040311]
[1760066485512,0.13713081,1251.2,1249.0,0.54040311]
[1760066485807,0.13713081,1251.2,1249.1,0.54040311]
[1760066486012,0.13713081,1251.2,1249.2,0.54040311]
[1760066486212,0.13713081,1251.2,1249.3,0.54040311]
[1760066486409,0.13713081,1251.2,1251.1,2.76741496]
[1760066486714,0.13713081,1251.2,1251.1,3.30781807]
[1760066489514,0.13713081,1251.2,1251.1,0.54040311]
[1760066490614,0.13713081,1251.2,1251.1,3.30781807]
[1760066491610,0.13713081,1251.2,1251.1,0.54040311]
[1760066505722,0.10524353,1251.2,1251.1,0.54040311]
[1760066507424,0.10524353,1251.2,1251.1,3.30297251]
[1760066508726,0.10524353,1251.2,1251.1,0.54040311]
[1760066511029,0.10524353,1251.2,1251.1,2.51341696]
[1760066512126,0.10524353,1251.2,1251.1,0.54040311]
[1760066512528,0.10524353,1251.2,1251.1,2.51341696]
[1760066513129,0.08091572,1251.2,1251.1,0.54040311]
[1760066519033,0.08091572,1251.2,1251.1,3.30273565]
[1760066520030,0.08091572,1251.2,1251.1,0.54040311]
[1760066521334,0.06227776,1251.2,1251.1,0.54040311]
[1760066547156,0.06227776,1251.2,1251.1,2.52038211]
[1760066551058,0.06227776,1251.2,1251.1,0.54040311]
[1760066581383,0.06227776,1251.2,1251.1,1.72702511]
[1760066582182,0.06227776,1251.2,1251.1,0.54040311]
[1760066598503,0.06227776,1251.2,1251.1,2.52038211]
[1760066599005,0.06227776,1251.2,1251.1,2.51719638]
[1760066602105,0.06227776,1251.2,1251.1,0.54040311]
[1760066617018,0.06227776,1251.2,1251.1,2.51658291]
[1760066618123,0.06227776,1251.2,1251.1,1.9761798]
[1760066619517,0.06227776,1251.2,1250.7,2.7669409]
[1760066619722,0.06227776,1251.2,1250.8,0.54086214]
[1760066619919,0.06227776,1251.2,1250.9,0.54086214]
[1760066620122,0.06227776,1251.2,1251.0,0.54086214]
[1760066620323,0.06227776,1251.2,1251.1,0.54086214]
[1760066651052,0.06227776,1251.2,1251.1,1.73085569]
[1760066655455,0.06227776,1251.2,1251.1,0.54086214]
[1760066655652,0.06227776,1251.2,1251.1,1.73013964]
[1760066657454,0.06227776,1251.2,1251.1,0.54086214]
[1760066657758,0.06227776,1251.2,1251.1,1.72991914]
[1760066657957,0.06227776,1251.2,1251.1,0.54086214]
[1760066660257,0.06227776,1251.2,1251.1,1.53154776]
[1760066661056,0.06227776,1251.2,1251.1,0.73899926]
[1760066663264,0.06227776,1251.2,1251.1,1.53154776]
[1760066663465,0.06227776,1251.2,1251.1,0.73899926]
[1760066664065,0.06227776,1251.2,1251.1,1.13464007]
[1760066664362,0.26041291,1251.2,1251.1,1.13464007]
[1760066666866,0.06227776,1251.2,1251.1,0.54086214]
[1760066667164,0.06227776,1251.2,1251.1,0.73899926]
[1760066671262,0.06227776,1251.2,1251.1,1.13398706]
[1760066675267,0.06227776,1251.2,1251.1,0.54086214]
[1760066677267,0.06227776,1251.2,1251.1,1.33341064]
[1760066677467,0.06227776,1251.2,1251.1,1.72991914]
[1760066680971,0.06227776,1251.2,1251.1,0.54086214]
[1760066685576,0.06227776,1251.2,1251.1,1.33334385]
[1760066687978,0.06227776,1251.2,1251.1,0.54086214]
[1760066711491,0.06227776,1251.2,1251.1,3.28658964]
[1760066716496,0.06227776,1251.2,1251.1,0.54086214]
[1760066723802,0.04798807,1251.2,1251.1,0.54086214]
[1760066745317,0.03700564,1251.2,1251.1,0.54086214]
[1760066751224,0.1362361,1251.5,1251.1,0.54086214]
[1760066751524,0.1362361,1251.5,1250.3,6.3783032]
[1760066751525,0.1362361,1251.5,1251.2,0.54086214]
[1760066751725,0.1362361,1251.5,1251.3,0.54086214]
[1760066752025,0.1362361,1251.5,1251.4,0.54086214]
[1760066757225,0.10550562,1251.5,1251.4,0.54086214]
[1760066763334,0.03740208,1251.5,1251.4,0.54086214]
[1760066766036,0.02798575,1251.5,1251.4,0.54086214]
[1760066767335,0.02798575,1251.5,1251.4,0.54556696]
[1760066769337,0.02095049,1251.5,1251.4,0.54556696]
[1760066772742,0.01569052,1251.5,1251.4,0.54556696]
[1760066775345,0.06064402,1252.0,1251.4,0.54556696]
[1760066775643,0.06064402,1252.0,1249.6,3.9499785]
[1760066775644,0.06064402,1252.0,1251.5,0.54556696]
[1760066775841,0.06064402,1252.0,1251.6,0.54556696]
[1760066776040,0.06064402,1252.0,1251.7,0.54556696]
[1760066776241,0.06064402,1252.0,1249.6,3.9499785]
[1760066776242,0.06064402,1252.0,1251.8,0.54556696]
[1760066776445,0.06064402,1252.0,1251.9,0.54556696]
[1760066780750,0.06064402,1252.0,1251.9,4.49554546]
[1760066781349,0.14658522,1252.5,1251.9,4.49554546]
[1760066781646,0.14658522,1252.5,1252.0,0.54556696]
[1760066781845,0.14658522,1252.5,1252.1,0.54556696]
[1760066782045,0.14658522,1252.5,1252.2,0.54556696]
[1760066782249,0.14658522,1252.5,1252.3,0.54556696]
[1760066782446,0.14658522,1252.5,1252.4,0.54556696]
[1760066782951,0.14658522,1252.5,1252.4,4.49554546]
[1760066785052,0.14658522,1252.5,1252.4,0.54556696]
[1760066787654,0.11122037,1252.5,1252.4,0.54556696]
[1760066790456,0.11122037,1252.5,1252.4,4.49554546]
[1760066792659,0.11122037,1252.5,1252.4,3.29771986]
[1760066793760,0.08446909,1252.5,1252.4,3.29771986]
[1760066794662,0.08446909,1252.5,1252.4,0.54556696]
[1760066799764,0.01684875,1252.5,1252.4,0.54556696]
[1760066801164,0.01684875,1252.5,1252.4,4.47696786]
[1760066803161,0.01684875,1252.5,1252.4,0.54556696]
[1760066805760,0.11677669,1252.8,1252.4,0.54556696]
[1760066805959,0.11677669,1252.8,1252.6,3.929769]
[1760066806161,0.11677669,1252.8,1252.7,0.54556696]
[1760066808963,0.11677669,1252.8,1252.7,2.51086576]
[1760066810567,0.11677669,1252.8,1252.7,0.54556696]
[1760066815177,0.11677669,1252.8,1252.7,2.51454077]
[1760066818881,0.11677669,1252.8,1252.7,0.54556696]
[1760066831390,0.11677669,1252.8,1252.7,2.51718596]
[1760066831994,0.11677669,1252.8,1252.7,0.54556696]
[1760066832795,0.11677669,1252.8,1252.7,3.30082926]
[1760066833691,0.11677669,1252.8,1252.7,0.54556696]
[1760066835995,0.11677669,1252.8,1252.7,2.51254986]
[1760066836497,0.11677669,1252.8,1252.7,0.54556696]
[1760066840396,0.11677669,1252.8,1252.7,2.51254986]
[1760066842005,0.11677669,1252.8,1252.7,0.54556696]
[1760066847296,0.11677669,1252.8,1252.7,2.51273456]
[1760066847897,0.11677669,1252.8,1252.7,0.54556696]
[1760066850202,0.11677669,1252.8,1252.7,1.33300898]
[1760066851602,0.11677669,1252.8,1252.7,0.54556696]
[1760066861404,0.11677669,1252.8,1252.7,0.54707444]
[1760066861708,0.11677669,1252.8,1252.7,2.51424204]
[1760066862811,0.11677669,1252.8,1252.7,0.54707444]
[1760066867215,0.11677669,1252.8,1252.7,2.51745644]
[1760066867915,0.11677669,1252.8,1252.7,0.54707444]
[1760066868212,0.08870904,1252.8,1252.7,0.54707444]
[1760066873219,0.08870904,1252.8,1252.7,4.47684344]
[1760066874219,0.06766847,1252.8,1252.7,4.47684344]
[1760066875125,0.06766847,1252.8,1252.7,0.54707444]
[1760066880724,0.06766847,1252.8,1252.7,3.28665914]
[1760066881831,0.06766847,1252.8,1252.7,0.54707444]
[1760066882730,0.05165904,1252.8,1252.7,0.54707444]
[1760066888728,0.03947244,1252.8,1252.7,0.54707444]
[1760066894835,0.18137869,1253.4,1252.7,0.54707444]
[1760066895136,0.18137869,1253.4,1253.3,3.8927069]
[1760066895348,0.18137869,1253.4,1253.3,4.43978134]
[1760066897242,0.18137869,1253.4,1253.3,0.54707444]
[1760066909663,0.18137869,1253.4,1253.3,4.43978134]
[1760066911766,0.18137869,1253.4,1253.3,0.54707444]
[1760066912164,0.13905833,1253.4,1253.3,0.54707444]
[1760066914068,0.13905833,1253.4,1253.3,4.42929994]
[1760066916166,0.13905833,1253.4,1253.3,0.54707444]
[1760066920174,0.10676918,1253.4,1253.3,0.54707444]
[1760066924670,0.10676918,1253.4,1253.3,0.54651347]
[1760066926975,0.10676918,1253.4,1253.3,2.50483887]
[1760066928076,0.10676918,1253.4,1253.3,0.54651347]
[1760066929578,0.08205671,1253.4,1253.3,0.54651347]
[1760066943290,0.39524636,1253.8,1253.3,0.54651347]
[1760066943291,0.23137102,1253.8,1253.3,0.54651347]
[1760066943490,0.23137102,1253.8,1253.4,0.54651347]
[1760066943693,0.23137102,1253.8,1253.5,0.54651347]
[1760066943893,0.23137102,1253.8,1253.6,0.54651347]
[1760066944188,0.23137102,1253.8,1253.7,0.54651347]
[1760066945090,0.23137102,1253.8,1253.7,3.28919937]
[1760066945995,0.23137102,1253.8,1253.7,0.54651347]
[1760066949394,0.31216658,1253.9,1253.7,0.54651347]
[1760066949597,0.31216658,1253.9,1253.8,0.54651347]
[1760066951600,0.31216658,1253.9,1253.8,4.46234317]
[1760066953802,0.31216658,1253.9,1253.8,0.54651347]
[1760066955299,0.14142412,1253.9,1253.8,0.54651347]
[1760066961304,0.01477698,1253.9,1253.8,0.54651347]
[1760066964315,0.01477698,1253.9,1253.8,4.45515997]
[1760066966412,0.01477698,1253.9,1253.8,0.54651347]
[1760066967021,0.01477698,1253.9,1253.8,0.55686533]
[1760066967514,0.01077698,1253.9,1253.8,0.55686533]
[1760066973317,0.39520619,1254.0,1253.8,0.55686533]
[1760066973515,0.21897651,1254.0,1253.9,0.55686533]
[1760066974518,0.21897651,1254.0,1253.9,4.45992996]
[1760066978726,0.21897651,1254.0,1253.9,0.55686533]
[1760066979533,0.16919482,1254.0,1253.9,0.55686533]
[1760066992346,0.04167683,1254.0,1253.9,0.55686533]
[1760066993642,0.04167683,1254.0,1253.9,4.46644838]
[1760066995541,0.04167683,1254.0,1253.9,0.55686533]
[1760066998247,0.0325275,1254.0,1253.9,0.55686533]
[1760066999950,0.0253963,1254.0,1253.9,0.55686533]
[1760067004148,0.19761393,1255.7,1253.9,0.55686533]
[1760067004452,0.19761393,1255.7,1253.4,6.3783032]
[1760067004453,0.1556517,1255.0,1254.0,0.55686533]
[1760067004651,0.1556517,1255.0,1254.1,0.55686533]
[1760067004949,0.1556517,1255.0,1254.2,0.55686533]
[1760067005148,0.1556517,1255.0,1253.4,6.3783032]
[1760067005149,0.1556517,1255.0,1254.3,0.55686533]
[1760067005351,0.1556517,1255.0,1254.4,0.55686533]
[1760067005551,0.1556517,1255.0,1254.5,0.55686533]
[1760067005754,0.1556517,1255.0,1254.6,0.55686533]
[1760067006048,0.1556517,1255.0,1254.9,3.90585895]
[1760067006248,0.1556517,1255.0,1254.9,4.46272428]
[1760067010150,0.19660135,1255.2,1254.9,0.55686533]
[1760067010454,0.07971667,1255.1,1255.0,3.28293383]
[1760067011357,0.07971667,1255.1,1255.0,0.55686533]
[1760067012956,0.01598016,1255.1,1255.0,0.55686533]
[1760067016358,0.01198016,1255.1,1255.0,0.55686533]
[1760067022259,0.11631002,1255.2,1255.0,0.55686533]
[1760067022464,0.11631002,1255.2,1255.1,0.55686533]
[1760067025861,0.11631002,1255.2,1255.1,4.41128423]
[1760067027969,0.11631002,1255.2,1255.1,0.55686533]
[1760067028269,0.1085799,1255.6,1255.1,0.55686533]
[1760067028463,0.1085799,1255.6,1255.2,0.55686533]
[1760067028665,0.1085799,1255.6,1255.3,0.55686533]
[1760067028865,0.1085799,1255.6,1255.4,0.55686533]
[1760067029069,0.1085799,1255.6,1255.5,0.55686533]
[1760067034368,0.15330832,1255.7,1255.5,0.55686533]
[1760067034573,0.15330832,1255.7,1255.6,0.55686533]
[1760067035067,0.12045136,1255.7,1255.6,0.55686533]
[1760067036574,0.12045136,1255.7,1255.6,4.37263543]
[1760067037071,0.12045136,1255.7,1255.6,0.55686533]
[1760067040380,0.09477465,1255.7,1255.6,0.55686533]
[1760067043278,0.07464795,1255.7,1255.6,0.55686533]
[1760067045987,0.07464795,1255.7,1255.6,4.36123503]
[1760067048288,0.24439758,1256.1,1255.6,4.36123503]
[1760067048487,0.24439758,1256.1,1255.7,0.55686533]
[1760067048689,0.24439758,1256.1,1255.8,0.55686533]
[1760067048884,0.24439758,1256.1,1255.9,0.55686533]
[1760067049090,0.24439758,1256.1,1256.0,0.55686533]
[1760067056398,0.24439758,1256.1,1256.0,3.23906623]
[1760067058398,0.24439758,1256.1,1256.0,0.55686533]
[1760067061198,0.19250109,1256.1,1256.0,0.55686533]
[1760067067310,0.02750284,1256.1,1256.0,0.55686533]
[1760067072410,0.02750284,1256.1,1256.0,4.41996583]
[1760067073410,0.02104325,1256.1,1256.0,4.41996583]
[1760067073610,0.01610549,1256.1,1256.0,4.41996583]
[1760067074414,0.01610549,1256.1,1256.0,0.55686533]
[1760067079415,0.19753523,1256.8,1256.0,0.55686533]
[1760067079620,0.46523271,1256.2,1256.1,0.55686533]
[1760067084424,0.46523271,1256.2,1256.1,4.42087129]
[1760067085520,0.35913998,1256.2,1256.1,4.42087129]
[1760067086524,0.35913998,1256.2,1256.1,0.55686533]
[1760067091523,0.27847196,1256.2,1256.1,0.55686533]
[1760067095022,0.08136271,1256.2,1256.1,0.55686533]
[1760067097331,0.06329402,1256.2,1256.1,0.55686533]
[1760067097529,0.1590733,1256.8,1256.1,0.55686533]
[1760067097723,0.1590733,1256.8,1256.2,0.55686533]
[1760067097927,0.1590733,1256.8,1256.3,0.55686533]
[1760067098128,0.1590733,1256.8,1256.4,0.55686533]
[1760067098329,0.1590733,1256.8,1256.5,0.55686533]
[1760067098625,0.1590733,1256.8,1256.6,0.55686533]
[1760067098924,0.1590733,1256.8,1256.7,0.55686533]
[1760067101629,0.1590733,1256.8,1256.7,4.4199195]
[1760067103526,0.08126932,1256.8,1256.7,4.4199195]
[1760067105827,0.08126932,1256.8,1256.7,0.55686533]
[1760067109534,0.06374683,1256.8,1256.7,0.55686533]
[1760067111233,0.0076089,1256.8,1256.7,0.55686533]
[1760067115037,0.0076089,1256.8,1256.7,4.41897246]
[1760067115639,0.01018182,1256.9,1256.7,4.41897246]
[1760067115840,0.01018182,1256.9,1256.8,0.55686533]
[1760067123152,0.00618182,1256.9,1256.8,0.55686533]
[1760067127758,0.00218182,1256.9,1256.8,0.55686533]
[1760067129257,0.01152911,1257.5,1256.8,0.55686533]
[1760067129455,0.01152911,1257.5,1256.9,0.55686533]
[1760067129653,0.01152911,1257.5,1257.0,0.55686533]
[1760067129857,0.01152911,1257.5,1257.2,3.83069797]
[1760067130058,0.01152911,1257.5,1257.3,0.55686533]
[1760067130357,0.01152911,1257.5,1257.4,0.55686533]
[1760067135556,0.00752911,1257.5,1257.4,0.55686533]
[1760067141559,0.00352911,1257.5,1257.4,0.55686533]
[1760067143060,0.39063167,1258.1,1257.4,0.55686533]
[1760067143263,0.39063167,1258.1,1257.5,0.55686533]
[1760067143465,0.39063167,1258.1,1257.6,0.55686533]
[1760067143667,0.39063167,1258.1,1257.7,0.55686533]
[1760067143864,0.39063167,1258.1,1257.8,0.55686533]
[1760067144070,0.39063167,1258.1,1257.9,0.55686533]
[1760067144263,0.39063167,1258.1,1258.0,0.55686533]
[1760067145366,0.19541487,1258.1,1258.0,0.55686533]
[1760067149472,0.19541487,1258.1,1258.0,4.36694658]
[1760067149768,0.19541487,1258.1,1258.0,7.04634168]
[1760067150373,0.19541487,1258.1,1258.0,8.9609977]
[1760067150771,0.19541487,1258.1,1258.0,6.2816026]
[1760067151574,0.19541487,1258.1,1258.0,2.47152135]
[1760067151768,0.19541487,1258.1,1258.0,0.55686533]
[1760067152473,0.19541487,1258.1,1258.0,2.47152135]
[1760067152871,0.19541487,1258.1,1258.0,0.55686533]
[1760067161483,0.19541487,1258.1,1258.0,0.54111041]
[1760067173493,0.19541487,1258.1,1258.0,1.69398528]
[1760067174295,0.19541487,1258.1,1258.0,0.54111041]
[1760067179093,0.19541487,1258.1,1258.0,1.30813838]
[1760067179892,0.19541487,1258.1,1258.0,0.54111041]
[1760067185201,0.19541487,1258.1,1258.0,2.46093484]
[1760067185702,0.19541487,1258.1,1258.0,0.54111041]
[1760067199003,0.19541487,1258.1,1258.0,1.69675075]
[1760067199204,0.19541487,1258.1,1258.0,0.54111041]
[1760067200109,0.19541487,1258.1,1258.0,1.69675075]
[1760067200310,0.19541487,1258.1,1258.0,0.54111041]
[1760067200505,0.19541487,1258.1,1258.0,1.69765966]
[1760067200706,0.19541487,1258.1,1258.0,0.54111041]
[1760067210717,0.19541487,1258.1,1258.0,3.25333433]
[1760067211115,0.15082525,1258.1,1258.0,3.25333433]
[1760067211818,0.15082525,1258.1,1258.0,0.54111041]
[1760067214722,0.15082525,1258.1,1258.0,2.47279771]
[1760067214924,0.15082525,1258.1,1258.0,0.54111041]
[1760067216822,0.15082525,1258.1,1258.0,3.24547264]
[1760067219827,0.15082525,1258.1,1258.0,0.54111041]
[1760067220624,0.15082525,1258.1,1258.0,3.24820965]
[1760067221630,0.15082525,1258.1,1258.0,0.54111041]
[1760067222728,0.15082525,1258.1,1258.0,3.24820965]
[1760067224931,0.15082525,1258.1,1258.0,0.54111041]
[1760067242635,0.15082525,1258.1,1258.0,0.54843687]
[1760067259550,0.15082525,1258.1,1258.0,2.48408313]
[1760067259951,0.15082525,1258.1,1258.0,0.54843687]
[1760067263351,0.15082525,1258.1,1258.0,3.26068263]
[1760067264554,0.15082525,1258.1,1258.0,0.54843687]
[1760067265756,0.15082525,1258.1,1256.4,1.93726073]
[1760067265956,0.15082525,1258.1,1256.5,0.54878286]
[1760067266150,0.15082525,1258.1,1256.6,2.48604359]
[1760067266354,0.15082525,1258.1,1256.7,0.54878286]
[1760067266555,0.15082525,1258.1,1256.8,0.54878286]
[1760067266753,0.15082525,1258.1,1256.9,0.54878286]
[1760067266956,0.15082525,1258.1,1257.0,0.54878286]
[1760067267151,0.15082525,1258.1,1257.4,1.93726073]
[1760067267353,0.15082525,1258.1,1257.5,0.54878286]
[1760067267553,0.15082525,1258.1,1257.7,2.71224576]
[1760067267757,0.15082525,1258.1,1257.8,0.54878286]
[1760067267958,0.15082525,1258.1,1257.9,0.54878286]
[1760067268257,0.15082525,1258.1,1258.0,0.54878286]
[1760067271561,0.11470482,1258.1,1258.0,0.54878286]
[1760067271757,0.11470482,1258.1,1258.0,0.54728673]
[1760067282270,0.11470482,1258.1,1258.0,2.48219055]
[1760067283471,0.11470482,1258.1,1258.0,0.54728673]
[1760067290084,0.11470482,1258.1,1258.0,3.25361562]
[1760067291184,0.11470482,1258.1,1258.0,0.54728673]
[1760067296488,0.11470482,1258.1,1258.0,3.25361562]
[1760067297388,0.11470482,1258.1,1258.0,0.54728673]
[1760067298394,0.11470482,1258.1,1258.0,3.25361562]
[1760067299496,0.11470482,1258.1,1258.0,2.48427404]
[1760067299892,0.11470482,1258.1,1258.0,0.54728673]
[1760067305796,0.11470482,1258.1,1258.0,2.48427404]
[1760067306196,0.11470482,1258.1,1258.0,0.54728673]
[1760067333637,0.11470482,1258.1,1258.0,2.4888658]
[1760067334631,0.11470482,1258.1,1258.0,0.54728673]
[1760067338736,0.08767536,1258.1,1258.0,0.54728673]
[1760067344038,0.08767536,1258.1,1258.0,2.48775166]